[Event "CZE-ch FIDE Open 2020"]
[Site "Kouty nad Desnou"]
[Date "2020.03.10"]
[Round "5.14"]
[White "Dedek, Jan"]
[Black "Merinsky, Vaclav"]
[Result "0-1"]
[ECO "C50"]
[WhiteElo "1551"]
[BlackElo "1764"]
[Annotator "NA RC"]
[PlyCount "62"]
[EventDate "2020.03.07"]
[EventCountry "CZE"]
[SourceTitle "playchess.com"]
[Source "ChessBase"]
[SourceQuality "1"]
[TimeControl "5400+30"]

1. e4 {[%emt 0:00:00]} e5 {[%emt 0:00:00]} 2. Nf3 {[%emt 0:00:00]} Nc6 {[%emt 0:00:00]} 3. Bc4 {[%emt 0:00:00]} Bc5 {[%emt 0:00:00]} 4. O-O {[%emt 0:00:00]} Nf6 {[%emt 0:00:16]} 5. d3 {[%emt 0:00:00]} d6 {[%emt 0:00:17]} 6. Re1 {[%emt 0:00:34]} Bg4 {[%emt 0:01:51]} 7. h3 {[%emt 0:01:50]} Be6 {[%emt 0:00:46]} 8. Bb3 {[%emt 0:01:19]} h6 {[%emt 0:01:11]} 9. Nbd2 {[%emt 0:01:26]} O-O {[%emt 0:00:17]} 10. Nf1 {[%emt 0:01:06]} Nd4 {[%emt 0:03:33]} 11. Be3 {[%emt 0:01:17]} Nxb3 {[%emt 0:00:32]} 12. axb3 {[%emt 0:00:04]} Bb6 {[%emt 0:00:26]} 13. Bxb6 {[%emt 0:01:09]} axb6 {[%emt 0:00:14]} 14. Ne3 {[%emt 0:01:00]} Qe7 {[%emt 0:02:54]} 15. Qd2 {[%emt 0:01:36]} Nh7 {[%emt 0:00:57]} 16. Qc3 {[%emt 0:04:05]} Nf6 {[%emt 0:06:59]} 17. Ra3 {[%emt 0:04:24]} Ra6 {[%emt 0:01:40]} 18. Rea1 {[%emt 0:02:00]} Rfa8 {[%emt 0:00:48]} 19. Rxa6 {[%emt 0:06:42]} Rxa6 {[%emt 0:00:15]} 20. Rxa6 {[%emt 0:00:05]} bxa6 {[%emt 0:00:28]} 21. b4 {[%emt 0:00:29]} Qd7 {[%emt 0:04:09]} 22. Qa3 {[%emt 0:01:58]} Qc8 {[%emt 0:00:54]} 23. c4 {[%emt 0:06:45]} Nh5 {[%emt 0:07:23]} 24. Nd5 {[%emt 0:01:16]} Bxd5 {[%emt 0:01:04]} 25. cxd5 {[%emt 0:00:04]} Nf4 {[%emt 0:01:02]} 26. Nd2 {[%emt 0:00:54]} b5 {[%emt 0:02:30]} 27. Nf3 {[%emt 0:01:15]} c6 {[%emt 0:03:35]} 28. dxc6 {[%emt 0:02:57]} Qxc6 {[%emt 0:00:06]} 29. Ne1 {[%emt 0:05:15]} Qc1 {[%emt 0:13:34]} 30. Kf1 {[%emt 0:00:14]} Qd1 {[%emt 0:01:05]} 31. g3 {[%emt 0:00:54]} Qe2+ {[%emt 0:00:14]} 0-1

[Event "CZE-ch FIDE Open 2020"]
[Site "Kouty nad Desnou"]
[Date "2020.03.11"]
[Round "6.2"]
[White "Tuma, Jan"]
[Black "Bares, Jachym"]
[Result "0-1"]
[ECO "C44"]
[WhiteElo "1993"]
[BlackElo "2119"]
[Annotator "RC"]
[PlyCount "52"]
[EventDate "2020.03.07"]
[EventCountry "CZE"]
[SourceTitle "playchess.com"]
[Source "ChessBase"]
[SourceQuality "1"]
[TimeControl "5400+30"]

1. e4 {[%emt 0:04:29]} e5 {[%emt 0:00:00]} 2. Nf3 {[%emt 0:00:18]} Nc6 {[%emt 0:00:00]} 3. c3 {[%emt 0:00:37]} d5 {[%emt 0:01:13]} 4. Qa4 {[%emt 0:00:42]} Bd7 {[%emt 0:07:59]} 5. exd5 {[%emt 0:01:45]} Nd4 {[%emt 0:00:11]} 6. Qd1 {[%emt 0:00:20]} Nxf3+ {[%emt 0:00:19]} 7. Qxf3 {[%emt 0:00:36]} Nf6 {[%emt 0:00:11]} 8. Bc4 {[%emt 0:11:39]} Bd6 {[%emt 0:05:18]} 9. d3 {[%emt 0:12:49]} b5 {[%emt 0:00:21]} 10. Bb3 {[%emt 0:00:43]} Bg4 {[%emt 0:00:06]} 11. Qe3 {[%emt 0:08:40]} O-O {[%emt 0:00:33]} 12. Nd2 {[%emt 0:05:12]} Nh5 {[%emt 0:08:18]} 13. h3 {[%emt 0:09:43]} Nf4 {[%emt 0:03:15]} 14. Rg1 {[%emt 0:11:55]} Bh5 {[%emt 0:11:48]} 15. g4 {[%emt 0:02:14]} Bg6 {[%emt 0:01:54]} 16. Ne4 {[%emt 0:02:29]} a5 {[%emt 0:04:34]} 17. c4 {[%emt 0:07:53]} bxc4 {[%emt 0:03:58]} 18. dxc4 {[%emt 0:00:17]} Bb4+ {[%emt 0:01:12]} 19. Kf1 {[%emt 0:05:04]} Qh4 {[%emt 0:04:24]} 20. Rg3 {[%emt 0:05:49]} f5 {[%emt 0:02:39]} 21. Nc3 {[%emt 0:03:04]} fxg4 {[%emt 0:08:02]} 22. Rxg4 {[%emt 0:00:36]} Qh5 {[%emt 0:02:11]} 23. Bd2 {[%emt 0:02:14]} Nxh3 {[%emt 0:06:26]} 24. Rg2 {[%emt 0:00:30]} Nf4 {[%emt 0:03:53]} 25. Rg1 {[%emt 0:00:29]} Bd3+ {[%emt 0:00:10]} 26. Ke1 {[%emt 0:00:16]} Ng2+ {[%emt 0:00:15]} 0-1

[Event "CZE-ch FIDE Open 2020"]
[Site "Kouty nad Desnou"]
[Date "2020.03.11"]
[Round "6.5"]
[White "Broz, Petr"]
[Black "Kucera, Tomas"]
[Result "1/2-1/2"]
[ECO "B20"]
[WhiteElo "1976"]
[BlackElo "1985"]
[Annotator "ChessBase"]
[PlyCount "98"]
[EventDate "2020.03.07"]
[EventCountry "CZE"]
[SourceTitle "playchess.com"]
[Source "ChessBase"]
[SourceQuality "1"]
[TimeControl "5400+30"]

1. e4 {[%emt 0:00:00]} c5 {[%emt 0:00:24]} 2. b4 {[%emt 0:00:24]} cxb4 {[%emt 0:00:36]} 3. a3 {[%emt 0:00:44]} d5 {[%emt 0:02:17]} 4. exd5 {[%emt 0:00:09]} Qxd5 {[%emt 0:00:10]} 5. Nf3 {[%emt 0:00:23]} Bg4 {[%emt 0:06:10]} 6. Be2 {[%emt 0:01:44]} e5 {[%emt 0:01:33]} 7. c4 {[%emt 0:01:57]} bxc3 {[%emt 0:09:55]} 8. Nxc3 {[%emt 0:00:05]} Qa5 {[%emt 0:00:05]} 9. O-O {[%emt 0:00:14]} Nf6 {[%emt 0:07:49]} 10. Nxe5 {[%emt 0:01:26]} Bxe2 {[%emt 0:00:22]} 11. Qxe2 {[%emt 0:00:07]} Be7 {[%emt 0:00:13]} 12. Re1 {[%emt 0:00:09]} O-O {[%emt 0:02:19]} 13. Nc4 {[%emt 0:14:51]} Qc7 {[%emt 0:02:14]} 14. Nb5 {[%emt 0:00:06]} Qd7 {[%emt 0:05:53]} 15. Ne5 {[%emt 0:05:16]} Qd8 {[%emt 0:03:20]} 16. Qf3 {[%emt 0:03:20]} Nd5 {[%emt 0:06:44]} 17. Nc3 {[%emt 0:02:12]} Nxc3 {[%emt 0:12:31]} 18. dxc3 {[%emt 0:00:39]} Nc6 {[%emt 0:02:48]} 19. Nxc6 {[%emt 0:00:53]} bxc6 {[%emt 0:00:07]} 20. Bf4 {[%emt 0:00:31]} Bf6 {[%emt 0:00:38]} 21. Rad1 {[%emt 0:00:34]} Qa5 {[%emt 0:00:42]} 22. Qg4 {[%emt 0:03:20]} Rfe8 {[%emt 0:09:12]} 23. Qd7 {[%emt 0:01:28]} Rxe1+ {[%emt 0:05:41]} 24. Rxe1 {[%emt 0:00:26]} h6 {[%emt 0:00:29]} 25. Qxc6 {[%emt 0:00:05]} Rd8 {[%emt 0:01:37]} 26. Re8+ {[%emt 0:07:31]} Rxe8 {[%emt 0:00:14]} 27. Qxe8+ {[%emt 0:00:02]} Kh7 {[%emt 0:00:14]} 28. Qe4+ {[%emt 0:00:11]} Kg8 {[%emt 0:02:39]} 29. Qb4 {[%emt 0:00:29]} Bxc3 {[%emt 0:01:20]} 30. Qxa5 {[%emt 0:00:04]} Bxa5 {[%emt 0:00:07]} 31. Bd6 {[%emt 0:00:03]} f5 {[%emt 0:00:26]} 32. Kf1 {[%emt 0:00:13]} Kf7 {[%emt 0:01:15]} 33. Ke2 {[%emt 0:00:14]} g5 {[%emt 0:01:30]} 34. Kd3 {[%emt 0:01:12]} Ke6 {[%emt 0:00:46]} 35. Bc5 {[%emt 0:00:12]} a6 {[%emt 0:01:44]} 36. f3 {[%emt 0:03:57]} h5 {[%emt 0:00:53]} 37. h3 {[%emt 0:01:56]} Kd5 {[%emt 0:03:18]} 38. Be7 {[%emt 0:00:18]} g4 {[%emt 0:00:31]} 39. Ke3 {[%emt 0:03:11]} gxh3 {[%emt 0:01:37]} 40. gxh3 {[%emt 0:00:04]} Bc7 {[%emt 0:00:07]} 41. Kd3 {[%emt 0:01:20]} Ke5 {[%emt 0:02:01]} 42. Bg5 {[%emt 0:00:06]} Bd6 {[%emt 0:00:27]} 43. a4 {[%emt 0:00:22]} Kd5 {[%emt 0:00:18]} 44. Bc1 {[%emt 0:04:23]} Be5 {[%emt 0:01:28]} 45. Ba3 {[%emt 0:01:07]} Bf6 {[%emt 0:00:47]} 46. Bb4 {[%emt 0:01:44]} Be5 {[%emt 0:00:31]} 47. Be7 {[%emt 0:01:12]} Bg7 {[%emt 0:00:39]} 48. Bb4 {[%emt 0:02:15]} Be5 {[%emt 0:00:11]} 49. Bf8 {[%emt 0:00:05]} Bf6 {[%emt 0:00:30]} 1/2-1/2

[Event "CZE-ch FIDE Open 2020"]
[Site "Kouty nad Desnou"]
[Date "2020.03.11"]
[Round "6.13"]
[White "Merinsky, Vaclav"]
[Black "Hradek, Matyas"]
[Result "1/2-1/2"]
[ECO "C01"]
[WhiteElo "1764"]
[BlackElo "1508"]
[Annotator "NA RC"]
[PlyCount "43"]
[EventDate "2020.03.07"]
[EventCountry "CZE"]
[SourceTitle "playchess.com"]
[Source "ChessBase"]
[SourceQuality "1"]
[TimeControl "5400+30"]

1. e4 {[%emt 0:00:00]} e6 {[%emt 0:00:00]} 2. d4 {[%emt 0:00:00]} d5 {[%emt 0:00:00]} 3. exd5 {[%emt 0:00:00]} exd5 {[%emt 0:00:00]} 4. Bd3 {[%emt 0:00:06]} Bd6 {[%emt 0:00:00]} 5. Nf3 {[%emt 0:00:27]} Nf6 {[%emt 0:00:06]} 6. Bg5 {[%emt 0:00:17]} O-O {[%emt 0:00:17]} 7. O-O {[%emt 0:00:16]} Bg4 {[%emt 0:00:14]} 8. Nbd2 {[%emt 0:00:40]} h6 {[%emt 0:00:18]} 9. Bh4 {[%emt 0:00:37]} Nbd7 {[%emt 0:00:23]} 10. c3 {[%emt 0:00:34]} c6 {[%emt 0:00:14]} 11. Qc2 {[%emt 0:02:19]} Qc7 {[%emt 0:00:12]} 12. Bg3 {[%emt 0:02:59]} Bxg3 {[%emt 0:01:07]} 13. hxg3 {[%emt 0:00:05]} Rfe8 {[%emt 0:01:04]} 14. Rfe1 {[%emt 0:02:02]} Kf8 {[%emt 0:12:40]} 15. Nb3 {[%emt 0:03:38]} b6 {[%emt 0:00:48]} 16. Nbd2 {[%emt 0:02:26]} Qd6 {[%emt 0:07:28]} 17. Nh2 {[%emt 0:03:42]} Bh5 {[%emt 0:02:26]} 18. Ndf1 {[%emt 0:07:09]} Ng4 {[%emt 0:03:28]} 19. Bf5 {[%emt 0:11:47]} Nxh2 {[%emt 0:00:13]} 20. Nxh2 {[%emt 0:02:03]} Bg6 {[%emt 0:00:14]} 21. Bxg6 {[%emt 0:01:14]} Qxg6 {[%emt 0:01:33]} 22. Qxg6 {[%emt 0:00:41]} 1/2-1/2

[Event "CZE-ch FIDE Open 2020"]
[Site "Kouty nad Desnou"]
[Date "2020.03.11"]
[Round "6.14"]
[White "Zamecnik, Jan"]
[Black "Vokoun, Tomas"]
[Result "1-0"]
[ECO "D79"]
[WhiteElo "1850"]
[BlackElo "1673"]
[Annotator "NA"]
[PlyCount "53"]
[EventDate "2020.03.07"]
[EventCountry "CZE"]
[SourceTitle "playchess.com"]
[Source "ChessBase"]
[SourceQuality "1"]
[TimeControl "5400+30"]

{[%evp 8,49,12,27,22,8,16,-22,49,40,52,25,52,59,77,32767,32767,32767,32767,32767,131,106,252,227,250,303,334,345,295,307,569,653,564,408,681,703,758,1087,891,530,32767,497,681,740]} 1. d4 {[%emt 0:00:00]} Nf6 {[%emt 0:00:00]} 2. g3 {[%emt 0:00:00]} g6 {[%emt 0:00:50]} 3. Bg2 {[%emt 0:00:00]} Bg7 {[%emt 0:00:20]} 4. Nf3 {[%emt 0:00:01]} O-O {[%emt 0:00:22]} 5. O-O {[%emt 0:00:34]} d5 {[%emt 0:01:39]} 6. c4 {[%emt 0:00:27]} c6 {[%emt 0:03:21]} 7. Nc3 {[%emt 0:00:55]} Nbd7 {[%emt 0:01:43]} ({Black should play} 7... dxc4 $11 8. e4 b5) 8. cxd5 {[%emt 0:02:07]} cxd5 {[%emt 0:01:08]} 9. Ne5 {[%emt 0:00:29]} Nb6 {[%emt 0:03:06]} 10. a4 {[%emt 0:03:29]} e6 {[%emt 0:10:14] D79: Fianchetto Grünfeld: Symmetrical Variation (6 0-0 c6 7 cxd5 cxd5).} 11. a5 {[%emt 0:05:55]} Nbd7 {[%emt 0:02:44]} 12. f4 {[%emt 0:03:46]} a6 {[%emt 0:05:42] [#]} 13. b4 $146 {[%emt 0:12:12]} ({Predecessor:} 13. b3 Qc7 14. Qd3 b6 15. Ba3 Re8 16. Rfc1 Qb7 17. axb6 Nxb6 18. Na4 Nbd7 19. Rc2 {1-0 (63) Martinovsky,E (2280)-Jordan,R Illinois 1993}) 13... Nxe5 {[%emt 0:03:12]} (13... b5 $11) 14. fxe5 {[%emt 0:00:53]} Nd7 {[%emt 0:00:50]} (14... Ne8 $16) 15. e4 {[%emt 0:04:27]} dxe4 {[%emt 0:02:00]} 16. Nxe4 {[%emt 0:00:24]} Rb8 {[%emt 0:04:52]} 17. Bg5 {[%emt 0:21:53]} f6 {[%emt 0:07:23]} 18. exf6 {[%emt 0:01:40]} Bxf6 $2 {[%emt 0:04:48]} (18... Nxf6 19. d5 e5) 19. Nxf6+ {[%emt 0:00:21]} Nxf6 {[%emt 0:00:11]} 20. Kh1 {[%emt 0:01:01]} Kg7 {[%emt 0:01:11]} (20... Bd7 $142 21. d5 Kg7) 21. Qd2 {[%emt 0:01:13]} Rf7 {[%emt 0:00:53]} 22. Qf4 {[%emt 0:00:30]} Bd7 {[%emt 0:02:31]} 23. Ra3 {[%emt 0:03:15]} Bb5 {[%emt 0:13:03]} 24. Rf2 {[%emt 0:00:28]} Bc6 {[%emt 0:00:40]} 25. Bxc6 $18 {[%emt 0:07:17]} bxc6 {[%emt 0:00:02]} 26. Raf3 {[%emt 0:00:21]} Qd5 {[%emt 0:00:45]} 27. Bxf6+ {[%emt 0:02:32]} 1-0

[Event "CZE-ch FIDE Open 2020"]
[Site "Kouty nad Desnou"]
[Date "2020.03.11"]
[Round "6.15"]
[White "Husa, Daniel"]
[Black "Dedek, Jan"]
[Result "1/2-1/2"]
[ECO "D78"]
[WhiteElo "1814"]
[BlackElo "1551"]
[Annotator "NA RC"]
[PlyCount "33"]
[EventDate "2020.03.07"]
[EventCountry "CZE"]
[SourceTitle "playchess.com"]
[Source "ChessBase"]
[SourceQuality "1"]
[TimeControl "5400+30"]

{[%evp 8,33,21,13,30,12,16,15,22,-11,35,-55,-43,-53,-51,32767,32767,32767,32767,32767,-18,32767,32767,32767,32767,32767,32767,-49]} 1. d4 {[%emt 0:00:00]} Nf6 {[%emt 0:00:00]} 2. c4 {[%emt 0:00:00]} g6 {[%emt 0:00:00]} 3. g3 {[%emt 0:00:00]} Bg7 {[%emt 0:01:27]} 4. Bg2 {[%emt 0:00:00]} d5 {[%emt 0:00:05]} 5. Nf3 {[%emt 0:00:00]} O-O {[%emt 0:01:28]} 6. O-O {[%emt 0:00:00]} c6 {[%emt 0:05:49]} 7. Nbd2 {[%emt 0:06:09]} Nbd7 {[%emt 0:02:22]} 8. Qc2 {[%emt 0:03:02]} Nb6 {[%emt 0:01:44]} 9. e3 {[%emt 0:10:41]} ({Better is} 9. c5 $11 Nbd7 10. b3) 9... Bf5 {[%emt 0:02:42]} 10. Qc3 {[%emt 0:01:58]} Ne4 {[%emt 0:06:01]} 11. Nxe4 {[%emt 0:03:08]} Bxe4 {[%emt 0:00:10]} 12. c5 {[%emt 0:07:22]} Nd7 {[%emt 0:00:25]} 13. b4 {[%emt 0:03:37]} Re8 {[%emt 0:13:30]} 14. Nd2 {[%emt 0:05:15]} Bxg2 {[%emt 0:00:10]} 15. Kxg2 {[%emt 0:00:06]} e5 {[%emt 0:00:14]} 16. Nb3 {[%emt 0:03:32]} f5 {[%emt 0:05:59]} 17. dxe5 $15 {[%emt 0:18:13]} 1/2-1/2